bitfinex-derivatives/quotes_BTCF0:USTF0_20250222
["timestamp","ask_amount","ask_price","bid_price","bid_amount"]
[1740242874756,0.8919673,96708.0,96707.0,0.0419]
[1740242881459,0.79673841,96708.0,96707.0,0.0419]
[1740242882053,0.79673841,96708.0,96707.0,0.02573726]
[1740242882256,0.79673841,96708.0,96707.0,0.01]
[1740242885666,0.7207639,96708.0,96707.0,0.01]
[1740242891666,0.7508439,96708.0,96707.0,0.01]
[1740242894376,0.7198439,96708.0,96707.0,0.01]
[1740242894672,0.7506439,96708.0,96707.0,0.00616111]
[1740242894974,0.92184755,96708.0,96707.0,0.00616111]
[1740242896761,0.92180514,96708.0,96707.0,0.00616111]
[1740242897161,0.92180514,96708.0,96707.0,0.21296721]
[1740242897466,0.92180514,96708.0,96707.0,0.00616111]
[1740242899471,1.20087003,96708.0,96707.0,0.00616111]
[1740242902581,0.75060149,96708.0,96707.0,0.00616111]
[1740242903962,0.38980149,96708.0,96707.0,0.00616111]
[1740242906472,0.75060149,96708.0,96707.0,0.00616111]
[1740242908276,0.82657539,96708.0,96707.0,0.00616111]
[1740242911477,0.92180352,96708.0,96707.0,0.00616111]
[1740242918493,0.92180352,96708.0,96707.0,0.00368986]
[1740242919283,0.82657539,96708.0,96707.0,0.00368986]
[1740242925295,0.82641539,96708.0,96707.0,0.00368986]
[1740242931892,0.82641539,96708.0,96707.0,0.00226854]
[1740242933195,0.46561539,96708.0,96707.0,0.00226854]
[1740242933402,0.82641539,96708.0,96707.0,0.00226854]
[1740242937197,0.75044149,96708.0,96707.0,0.00226854]
[1740242942108,0.402,96708.0,96707.0,0.20907464]
[1740242942309,0.1118,96708.0,96707.0,0.20907464]
[1740242942516,0.1218,96708.0,96707.0,0.20907464]
[1740242942813,0.011,96708.0,96707.0,0.20907464]
[1740242943109,0.30997858,96709.0,96708.0,0.2068039]
[1740242943301,0.1108,96719.0,96718.0,0.2067826]
[1740242943501,0.033,96724.0,96718.0,0.3608]
[1740242943700,0.1108,96723.0,96722.0,0.2584674]
[1740242944111,0.00015502,96725.0,96722.0,0.0516934]
[1740242944413,0.3692644,96724.0,96723.0,0.2067719]
[1740242944611,0.3792644,96724.0,96723.0,0.2067719]
[1740242945011,0.3275719,96724.0,96723.0,0.2067719]
[1740242945806,0.2167719,96724.0,96723.0,0.2067719]
[1740242946008,0.3275719,96724.0,96723.0,0.2067719]
[1740242946207,0.1208,96724.0,96723.0,0.2067719]
[1740242946618,0.3275697,96724.0,96723.0,0.2067719]
[1740242946820,0.3275697,96724.0,96723.0,0.2077719]
[1740242947206,0.42277584,96724.0,96723.0,0.2077719]
[1740242948421,0.21600614,96724.0,96723.0,0.2077719]
[1740242948610,0.42277584,96724.0,96723.0,0.2077719]
[1740242949819,0.3275697,96724.0,96723.0,0.2077719]
[1740242950115,0.1208,96724.0,96723.0,0.2077719]
[1740242950811,0.2167697,96724.0,96723.0,0.2077719]
[1740242951012,0.3275297,96724.0,96723.0,0.2077719]
[1740242951912,0.12076,96724.0,96723.0,0.2077719]
[1740242952315,0.3275297,96724.0,96723.0,0.2077719]
[1740242952918,0.12076,96724.0,96723.0,0.2077719]
[1740242953117,0.3275297,96724.0,96723.0,0.2077719]
[1740242955327,0.11076,96724.0,96723.0,0.2077719]
[1740242956021,0.00015502,96725.0,96723.0,0.2077719]
[1740242956217,0.00015502,96725.0,96724.0,0.2067697]
[1740242956625,0.20692262,96725.0,96724.0,0.2067697]
[1740242956823,0.00015502,96725.0,96724.0,0.2067697]
[1740242957224,0.21692262,96725.0,96724.0,0.2067697]
[1740242957626,0.21792262,96725.0,96724.0,0.2067697]
[1740242958711,0.20792262,96725.0,96724.0,0.2067697]
[1740242958917,0.21792262,96725.0,96724.0,0.2067697]
[1740242959114,0.20792262,96725.0,96724.0,0.2067697]
[1740242959520,0.21792262,96725.0,96724.0,0.2067697]
[1740242959716,0.01115502,96725.0,96724.0,0.2067697]
[1740242960325,0.21792262,96725.0,96724.0,0.2067697]
[1740242960520,0.01115502,96725.0,96724.0,0.2067697]
[1740242961120,0.21792262,96725.0,96724.0,0.2067697]
[1740242961629,0.00115502,96725.0,96724.0,0.2067697]
[1740242962016,0.01115502,96725.0,96724.0,0.2067697]
[1740242962735,0.21792262,96725.0,96724.0,0.2067697]
[1740242962932,0.01115502,96725.0,96724.0,0.2067697]
[1740242965133,0.00115502,96725.0,96724.0,0.2067697]
[1740242965431,0.01115502,96725.0,96724.0,0.2067697]
[1740242970638,0.00115502,96725.0,96724.0,0.2067697]
[1740242971033,0.01115502,96725.0,96724.0,0.2067697]
[1740242971233,0.00115502,96725.0,96724.0,0.2067697]
[1740242971432,0.01115502,96725.0,96724.0,0.2067697]
[1740242971631,0.00115502,96725.0,96724.0,0.2067697]
[1740242972531,0.01115502,96725.0,96724.0,0.2067697]
[1740242980441,0.21792262,96725.0,96724.0,0.2067697]
[1740242980942,0.01115502,96725.0,96722.0,0.36176]
[1740242981142,0.01115502,96725.0,96722.0,0.206774]
[1740242981143,0.5775719,96723.0,96722.0,0.206774]
[1740242982046,0.0409,96723.0,96722.0,0.206774]
[1740242982349,0.0409,96723.0,96722.0,0.207774]
[1740242982850,0.1106,96723.0,96722.0,0.206774]
[1740242983144,0.1106,96723.0,96722.0,0.207774]
[1740242984039,0.01,96723.0,96722.0,0.207774]
[1740242987252,0.2167719,96723.0,96722.0,0.207774]
[1740242988146,0.01,96723.0,96722.0,0.207774]
[1740242988337,0.2167719,96723.0,96722.0,0.207774]
[1740242991066,0.01,96723.0,96722.0,0.207774]
[1740242996050,0.2167719,96723.0,96722.0,0.207774]
[1740242997241,0.01,96723.0,96722.0,0.207774]
[1740243003352,0.2167719,96723.0,96722.0,0.207774]
[1740243003559,0.01,96723.0,96722.0,0.207774]
[1740243004847,0.2167719,96723.0,96722.0,0.207774]
[1740243005457,0.01,96723.0,96722.0,0.207774]
[1740243005762,0.2167719,96723.0,96722.0,0.207774]
[1740243006163,0.01,96723.0,96722.0,0.207774]
[1740243007059,0.2167719,96723.0,96722.0,0.207774]
[1740243007258,0.01,96723.0,96722.0,0.207774]
[1740243008162,0.2167719,96723.0,96722.0,0.207774]
[1740243008358,0.01,96723.0,96722.0,0.207774]
[1740243009553,0.2167719,96723.0,96722.0,0.207774]
[1740243009955,0.01,96723.0,96722.0,0.207774]
[1740243015460,0.00015502,96725.0,96724.0,0.2067697]
[1740243015864,0.0319,96728.0,96722.0,0.001]
[1740243016170,0.0319,96728.0,96727.0,0.5675633]
[1740243016669,0.0419,96728.0,96727.0,0.5675633]
[1740243017970,0.0429,96728.0,96727.0,0.5675633]
[1740243018471,0.0439,96728.0,96727.0,0.5675633]
[1740243028289,0.2506612,96728.0,96727.0,0.5675633]
[1740243028586,0.0439,96728.0,96727.0,0.5675633]
[1740243028988,0.2506612,96728.0,96727.0,0.5675633]
[1740243029179,0.0439,96728.0,96727.0,0.5675633]
[1740243030192,0.2506612,96728.0,96727.0,0.2067633]
[1740243037688,0.2067676,96725.0,96724.0,0.2584573]
[1740243037886,0.2167676,96725.0,96724.0,0.2584573]
[1740243040701,0.2177676,96725.0,96724.0,0.2584573]
[1740243044103,0.2177676,96725.0,96724.0,0.2067653]
[1740243044306,0.2584644,96724.0,96723.0,0.2067713]
[1740243044505,0.2067761,96721.0,96720.0,0.2204]
[1740243044701,0.2167761,96721.0,96720.0,0.2204]
[1740243045004,0.3904961,96721.0,96720.0,0.2204]
[1740243045808,0.3904961,96721.0,96720.0,0.2214]
[1740243047706,0.3904961,96721.0,96720.0,0.2234]
[1740243048592,0.3904561,96721.0,96720.0,0.2234]
[1740243049402,0.3904561,96721.0,96720.0,0.003]
[1740243061511,0.18368,96721.0,96720.0,0.003]
[1740243061717,0.3601561,96721.0,96720.0,0.2097783]
[1740243062101,0.15334,96721.0,96720.0,0.2097783]
[1740243062511,0.3601161,96721.0,96720.0,0.2097783]
[1740243062703,0.2498761,96721.0,96720.0,0.2097783]
[1740243062901,0.3601161,96721.0,96720.0,0.2097783]
[1740243064915,0.3501161,96721.0,96720.0,0.2097783]
[1740243065722,0.3601161,96721.0,96720.0,0.2097783]
[1740243066317,0.3501161,96721.0,96720.0,0.2097783]
[1740243066622,0.0516917,96726.0,96725.0,0.2067655]
[1740243066826,0.3686625,96726.0,96725.0,0.2067655]
[1740243067319,0.3786625,96726.0,96725.0,0.2067655]
[1740243067907,0.3796625,96726.0,96725.0,0.2067655]
[1740243074926,0.2694625,96726.0,96725.0,0.2067655]
[1740243075124,0.001,96726.0,96725.0,0.2067655]
[1740243075323,0.001,96726.0,96725.0,0.5675655]
[1740243077128,0.011,96726.0,96725.0,0.5675655]
[1740243079930,0.2177655,96726.0,96725.0,0.5675655]
[1740243080519,0.2067761,96721.0,96720.0,0.2204]
[1740243080723,0.2167761,96721.0,96720.0,0.4271756]
[1740243081227,0.001,96726.0,96720.0,0.2204]
[1740243081429,0.2077672,96726.0,96725.0,0.5675676]
[1740243081627,0.2177672,96726.0,96725.0,0.5675676]
[1740243082037,0.01,96726.0,96725.0,0.5675676]
[1740243083221,0.2167655,96726.0,96725.0,0.5675676]
[1740243083426,0.01,96726.0,96725.0,0.5675676]
[1740243083830,0.011,96726.0,96725.0,0.5675676]
[1740243088143,0.2177655,96726.0,96725.0,0.5675676]
[1740243096856,0.2067719,96723.0,96722.0,0.2584626]
[1740243097055,0.2167719,96723.0,96722.0,0.2584626]
[1740243097259,0.2167719,96723.0,96719.0,0.0516946]
[1740243097260,0.0413,96723.0,96719.0,0.0516946]
[1740243097459,0.0413,96723.0,96719.0,0.3101652]
[1740243097460,0.2167783,96720.0,96719.0,0.3101652]
[1740243099958,0.2167783,96720.0,96719.0,0.3131652]
[1740243101465,0.2167783,96720.0,96719.0,0.2614706]
[1740243102761,0.2167783,96720.0,96719.0,0.2097761]
[1740243104665,0.2167783,96720.0,96719.0,0.003]
[1740243105971,0.2167783,96720.0,96719.0,0.2097804]
[1740243114968,0.2167783,96720.0,96719.0,0.003]
[1740243115167,0.2167783,96720.0,96719.0,0.2097804]
[1740243116271,0.2167783,96720.0,96719.0,0.003]
[1740243116572,0.2167783,96720.0,96719.0,0.2097804]
[1740243118878,0.2167783,96720.0,96719.0,0.003]
[1740243119076,0.2167783,96720.0,96719.0,0.2097804]
[1740243119662,0.2167783,96720.0,96719.0,0.003]
[1740243119862,0.2167783,96720.0,96719.0,0.2097804]
[1740243120073,0.2167783,96720.0,96719.0,0.003]
[1740243120773,0.2167783,96720.0,96719.0,0.2097804]
[1740243121075,0.2167783,96720.0,96719.0,0.003]
[1740243121275,0.2167783,96720.0,96719.0,0.2097804]
[1740243121475,0.2167783,96720.0,96719.0,0.003]
[1740243121667,0.2167783,96720.0,96719.0,0.2097804]
[1740243127877,0.2167783,96720.0,96719.0,0.5705804]
[1740243128081,0.01053668,96734.0,96719.0,0.3638]
[1740243128277,0.10992,96733.0,96732.0,0.051688]
[1740243128482,0.3166705,96733.0,96732.0,0.2584406]
[1740243128683,0.3166705,96733.0,96730.0,0.0516888]
[1740243128684,0.82020001,96736.0,96735.0,0.2067462]
[1740243128884,0.92956,96736.0,96735.0,0.2067462]
[1740243129080,0.81964,96736.0,96735.0,0.2067462]
[1740243129290,0.93971242,96736.0,96735.0,0.2375462]
[1740243129696,0.82979242,96736.0,96735.0,0.2375462]
[1740243129984,0.83379242,96736.0,96735.0,0.2375462]
[1740243130188,0.83779242,96736.0,96735.0,0.2375462]
[1740243130590,1.04453652,96736.0,96735.0,0.2375462]
[1740243130784,0.84779242,96736.0,96735.0,0.2375462]
[1740243130988,1.05453652,96736.0,96735.0,0.2375462]
[1740243132591,0.84779242,96736.0,96735.0,0.2375462]
[1740243133081,1.05453652,96736.0,96735.0,0.2375462]
[1740243134294,0.018,96736.0,96735.0,0.2375462]
[1740243135790,0.008,96736.0,96735.0,0.2375462]
[1740243136589,0.018,96736.0,96735.0,0.2375462]
[1740243136797,0.10988,96748.0,96747.0,0.2067206]
[1740243136993,0.0305,96751.0,96750.0,0.2067142]
[1740243137793,0.04090985,96751.0,96750.0,0.2067142]
[1740243138392,0.04090985,96751.0,96750.0,0.2077142]
[1740243138393,0.04790985,96751.0,96750.0,0.2077142]
[1740243138698,0.26462185,96751.0,96750.0,0.2077142]
[1740243138999,0.27162185,96751.0,96750.0,0.2077142]
[1740243141987,0.06490985,96751.0,96750.0,0.2077142]
[1740243142301,0.27162185,96751.0,96750.0,0.2077142]
[1740243157309,0.27162185,96751.0,96750.0,0.001]
[1740243158410,0.36681073,96751.0,96750.0,0.001]
[1740243160805,0.72761073,96751.0,96750.0,0.001]
[1740243161608,0.63242185,96751.0,96750.0,0.001]
[1740243163611,0.27162185,96751.0,96750.0,0.001]
[1740243163804,0.63242185,96751.0,96750.0,0.001]
[1740243170610,0.27162185,96751.0,96750.0,0.001]
[1740243170817,0.63242185,96751.0,96750.0,0.001]
[1740243171405,0.27162185,96751.0,96750.0,0.001]
[1740243171614,0.63242185,96751.0,96750.0,0.001]
[1740243172520,0.27162185,96751.0,96750.0,0.001]
[1740243172820,0.63242185,96751.0,96750.0,0.001]
[1740243183819,0.2067291,96743.0,96742.0,0.2584104]
[1740243184027,0.3263291,96743.0,96742.0,0.2584104]
[1740243185021,0.3323291,96743.0,96742.0,0.2077277]
[1740243185625,0.3383291,96743.0,96742.0,0.2077277]
[1740243185924,0.4924,96743.0,96735.0,0.0311]
[1740243186125,0.2167441,96736.0,96735.0,0.2378462]
[1740243186518,0.2480441,96736.0,96735.0,0.0311]
[1740243186718,0.2480441,96736.0,96735.0,0.2378462]
[1740243187022,0.2480441,96736.0,96735.0,0.0311]
[1740243187628,0.2480441,96736.0,96735.0,0.2378462]
[1740243187926,0.2067462,96735.0,96734.0,0.2204]
[1740243188126,0.2167462,96735.0,96734.0,0.2204]
[1740243189018,0.2167462,96735.0,96730.0,0.05323983]
[1740243189019,0.258443,96732.0,96730.0,0.05323983]
[1740243189219,0.258443,96732.0,96731.0,0.2067546]
[1740243189530,0.738843,96732.0,96731.0,0.2067546]
[1740243190429,0.740843,96732.0,96731.0,0.2067546]
[1740243190830,0.380043,96732.0,96731.0,0.2067546]
[1740243191529,0.370043,96732.0,96731.0,0.2067546]
[1740243191725,0.380043,96732.0,96731.0,0.2067546]
[1740243192331,0.382043,96732.0,96731.0,0.2067546]
[1740243195323,0.372043,96732.0,96731.0,0.2067546]
[1740243196529,0.382043,96732.0,96731.0,0.2067546]
[1740243197228,0.372043,96732.0,96731.0,0.2067546]
[1740243197442,0.382043,96732.0,96731.0,0.2067546]
[1740243201042,0.1236,96732.0,96731.0,0.2067546]
[1740243201229,0.1136,96732.0,96731.0,0.2067546]
[1740243201839,0.3203526,96732.0,96731.0,0.2067546]
[1740243202234,0.42555123,96732.0,96731.0,0.2067546]
[1740243205335,0.3303526,96732.0,96731.0,0.2067546]
[1740243206337,0.3203526,96732.0,96731.0,0.2067546]
[1740243206540,0.3303526,96732.0,96731.0,0.2067546]
[1740243208037,0.3203526,96732.0,96731.0,0.2067546]
[1740243208342,0.3303526,96732.0,96731.0,0.2067546]
[1740243208947,0.3203526,96732.0,96731.0,0.2067546]
[1740243209240,0.3303526,96732.0,96731.0,0.2067546]
[1740243209835,0.3203526,96732.0,96731.0,0.2067546]
[1740243210042,0.3303526,96732.0,96731.0,0.2067546]
[1740243213438,0.3203526,96732.0,96731.0,0.2067546]
[1740243213734,0.3303526,96732.0,96731.0,0.2067546]
[1740243214637,0.6911526,96732.0,96731.0,0.2067546]
[1740243216751,0.2067548,96731.0,96730.0,0.00155073]
[1740243216951,0.2067633,96727.0,96726.0,0.20691811]
[1740243217248,0.2167633,96727.0,96726.0,0.20691811]
[1740243217447,0.2489633,96727.0,96726.0,0.20691811]
[1740243218042,0.25919132,96727.0,96726.0,0.20691811]
[1740243219843,0.26019132,96727.0,96726.0,0.20691811]
[1740243221840,0.35539991,96727.0,96726.0,0.20691811]
[1740243222855,0.35539991,96727.0,96726.0,0.00015511]
[1740243224462,0.46483991,96727.0,96726.0,0.00015511]
[1740243225054,0.36963132,96727.0,96726.0,0.00015511]
[1740243225748,0.26019132,96727.0,96726.0,0.00015511]
[1740243226059,0.36963132,96727.0,96726.0,0.00015511]
[1740243226248,0.35963132,96727.0,96726.0,0.00015511]
[1740243226552,0.15282802,96727.0,96726.0,0.20692061]
[1740243226857,0.001,96727.0,96726.0,0.20692061]
[1740243227159,0.001,96727.0,96726.0,0.30102061]
[1740243229563,0.011,96727.0,96726.0,0.30102061]
[1740243230260,0.2177633,96727.0,96726.0,0.30102061]
[1740243230759,0.011,96727.0,96726.0,0.30102061]
[1740243231152,0.2177633,96727.0,96726.0,0.30102061]
[1740243231559,0.011,96727.0,96726.0,0.30102061]
[1740243231761,0.2177633,96727.0,96726.0,0.30102061]
[1740243231960,0.011,96727.0,96726.0,0.30102061]
[1740243240859,0.011,96727.0,96726.0,0.27022061]
[1740243242272,0.011,96727.0,96726.0,0.23732061]
[1740243246782,0.2177633,96727.0,96726.0,0.20692061]
[1740243247173,0.2485633,96727.0,96726.0,0.20692061]
[1740243250999,0.343768,96727.0,96726.0,0.20692061]
[1740243257298,0.2485633,96727.0,96726.0,0.20692061]
[1740243258387,0.0418,96727.0,96726.0,0.20692061]
[1740243258591,0.2485633,96727.0,96726.0,0.20692061]
[1740243265696,0.2177633,96727.0,96726.0,0.20692061]
[1740243272791,0.31296763,96727.0,96726.0,0.20692061]
[1740243272998,0.31296763,96727.0,96726.0,0.00015511]
[1740243275600,0.41212763,96727.0,96726.0,0.00015511]
[1740243275802,0.41212763,96727.0,96726.0,0.20692061]
[1740243276003,0.09620433,96727.0,96726.0,0.20692061]
[1740243276204,0.20536433,96727.0,96726.0,0.20692061]
[1740243277206,0.41212763,96727.0,96726.0,0.20692061]
[1740243277407,0.42212763,96727.0,96726.0,0.20692061]
[1740243278603,0.3269233,96727.0,96726.0,0.20692061]
[1740243279804,0.3269233,96727.0,96726.0,0.00015511]
[1740243280008,0.3269233,96727.0,96726.0,0.20692061]
[1740243280204,0.2177633,96727.0,96726.0,0.20692061]
[1740243280424,0.3269233,96727.0,96726.0,0.20692061]
[1740243287013,0.42213545,96727.0,96726.0,0.20692061]
[1740243287322,0.42213545,96727.0,96726.0,0.00015511]
[1740243288213,0.42213545,96727.0,96726.0,0.20692061]
[1740243288713,0.42209545,96727.0,96726.0,0.00015511]
[1740243289102,0.3268833,96727.0,96726.0,0.00015511]
[1740243299724,0.6876833,96727.0,96726.0,0.00015511]
[1740243304627,0.6876833,96727.0,96720.0,0.2067782]
[1740243304628,0.48092,96727.0,96719.0,0.0314]
[1740243304827,0.2167783,96720.0,96719.0,0.0314]
[1740243305212,0.2483783,96720.0,96719.0,0.0314]
[1740243305830,0.2483783,96720.0,96719.0,0.0334]
[1740243306030,0.2483783,96720.0,96719.0,0.0354]
[1740243306419,0.2483783,96720.0,96719.0,0.0334]
[1740243306622,0.2483783,96720.0,96719.0,0.0354]
[1740243307322,0.2483783,96720.0,96719.0,0.2421804]
[1740243307522,0.2483783,96720.0,96719.0,0.0354]
[1740243307722,0.2483783,96720.0,96719.0,0.2421804]
[1740243307926,0.2483783,96720.0,96719.0,0.0354]
[1740243309832,0.34359352,96720.0,96719.0,0.0354]
[1740243310725,0.34359352,96720.0,96719.0,0.004]
[1740243315533,0.2067954,96712.0,96711.0,0.0325]
[1740243315835,0.2068146,96703.0,96702.0,0.0656]
[1740243316032,0.6866146,96703.0,96702.0,0.2724148]
[1740243316238,0.69687019,96703.0,96702.0,0.2724148]
[1740243316431,0.72687019,96703.0,96702.0,0.0656]
[1740243317034,0.72787019,96703.0,96702.0,0.2432168]
[1740243317237,0.75917019,96703.0,96702.0,0.2432168]
[1740243317433,0.72787019,96703.0,96702.0,0.0364]
[1740243317634,0.75917019,96703.0,96702.0,0.0364]
[1740243318330,0.75917019,96703.0,96702.0,0.004]
[1740243318830,0.76017019,96703.0,96702.0,0.007]
[1740243320240,0.76017019,96703.0,96702.0,0.2138168]
[1740243321232,0.39937019,96703.0,96702.0,0.2138168]
[1740243321735,0.39837019,96703.0,96702.0,0.2098168]
[1740243321938,0.39837019,96703.0,96702.0,0.2108168]
[1740243322140,0.39737019,96703.0,96702.0,0.2088168]
[1740243322743,0.39737019,96703.0,96702.0,0.002]
[1740243322930,0.39737019,96703.0,96702.0,0.2088168]
[1740243323438,0.49260226,96703.0,96702.0,0.2088168]
[1740243323929,0.45130226,96703.0,96702.0,0.2088168]
[1740243324134,0.46130226,96703.0,96702.0,0.2088168]
[1740243324334,0.46130226,96703.0,96702.0,0.002]
[1740243324944,0.46130226,96703.0,96702.0,0.2088168]
[1740243325536,0.46130226,96703.0,96702.0,0.002]
[1740243325937,0.46130226,96703.0,96702.0,0.2088168]
[1740243326134,0.45130226,96703.0,96702.0,0.2088168]
[1740243326338,0.45130226,96703.0,96702.0,0.2742168]
[1740243327041,0.46130226,96703.0,96702.0,0.2742168]
[1740243327238,0.45130226,96703.0,96702.0,0.2742168]
[1740243327543,0.24448766,96703.0,96702.0,0.2742168]
[1740243327845,0.13548766,96703.0,96702.0,0.2742168]
[1740243328140,0.24444766,96703.0,96702.0,0.2742168]
[1740243328741,0.46126226,96703.0,96702.0,0.2742168]
[1740243329344,0.36603019,96703.0,96702.0,0.2742168]
[1740243330834,0.36603019,96703.0,96702.0,0.0674]
[1740243331035,0.39823019,96703.0,96702.0,0.002]
[1740243331237,0.39823019,96703.0,96702.0,0.2088168]
[1740243331437,0.39823019,96703.0,96702.0,0.002]
[1740243331638,0.75903019,96703.0,96702.0,0.002]
[1740243331836,0.79143019,96703.0,96702.0,0.002]
[1740243332040,0.68247019,96703.0,96702.0,0.2088168]
[1740243332236,0.79143019,96703.0,96702.0,0.2088168]
[1740243332838,0.43063019,96703.0,96702.0,0.2088168]
[1740243334438,0.43063019,96703.0,96702.0,0.002]
[1740243336041,0.43063019,96703.0,96702.0,0.2088168]
[1740243336241,0.32167019,96703.0,96702.0,0.2088168]
[1740243336441,0.43059019,96703.0,96702.0,0.2088168]
[1740243336838,0.39819019,96703.0,96702.0,0.2088168]
[1740243337039,0.49342281,96703.0,96702.0,0.2088168]
[1740243337442,0.28660821,96703.0,96702.0,0.2088168]
[1740243337638,0.49342281,96703.0,96702.0,0.2088168]
[1740243347550,0.52492281,96703.0,96702.0,0.2088168]
[1740243348352,0.42969019,96703.0,96702.0,0.2088168]
[1740243359261,0.42969019,96703.0,96702.0,0.002]
[1740243360260,0.0517042,96702.0,96685.0,0.0629]
[1740243360463,0.01,96686.0,96685.0,0.0328]
[1740243360659,0.216851,96686.0,96685.0,0.2913652]
[1740243361564,0.216851,96686.0,96685.0,0.2933652]
[1740243361866,0.01,96686.0,96685.0,0.2953652]
[1740243362059,0.217851,96686.0,96685.0,0.2953652]
[1740243362462,0.011,96686.0,96685.0,0.2953652]
[1740243362761,0.002,96686.0,96685.0,0.2953652]
[1740243363252,0.11084,96686.0,96685.0,0.2953652]
[1740243364366,0.327691,96686.0,96685.0,0.2953652]
[1740243367571,0.327691,96686.0,96679.0,0.0302]
[1740243367572,0.42084,96686.0,96668.0,0.2204]
[1740243367765,0.42084,96686.0,96665.0,0.2068917]
[1740243367766,0.3103653,96666.0,96665.0,0.2068917]
[1740243368067,0.3103653,96666.0,96654.0,0.00155175]
[1740243368068,0.170566,96666.0,96655.0,0.0517291]
[1740243368268,0.3608,96658.0,96657.0,0.2069131]
[1740243368472,0.4696,96678.0,96656.0,0.0517285]
[1740243368661,0.3608,96678.0,96668.0,0.004]
[1740243368866,0.3608,96678.0,96669.0,0.1153218]
[1740243369073,0.00015519,96677.0,96669.0,0.0636]
[1740243369462,0.01,96670.0,96669.0,0.0636]
[1740243369662,0.01,96670.0,96669.0,0.2704874]
[1740243370071,0.01,96670.0,96669.0,1.7704874]
[1740243370261,0.01,96670.0,96669.0,1.7724874]
[1740243371769,0.01,96670.0,96669.0,1.8035874]
[1740243394996,0.00015519,96677.0,96669.0,1.6067]
[1740243395180,0.031,96689.0,96688.0,0.2068467]
[1740243395577,0.031,96689.0,96688.0,1.7068467]
[1740243396389,0.00015519,96698.0,96688.0,1.5]
[1740243396584,0.00015519,96698.0,96688.0,1.51053803]
[1740243396893,0.00015519,96698.0,96697.0,0.2068275]
[1740243397284,0.00015519,96698.0,96697.0,0.2373275]
[1740243397479,0.00015519,96698.0,96697.0,1.7373275]
[1740243397896,0.01015519,96698.0,96697.0,1.7373275]
[1740243398096,0.01515519,96698.0,96697.0,1.7373275]
[1740243398288,0.02115519,96698.0,96697.0,1.7373275]
[1740243399198,0.01115519,96698.0,96697.0,1.7373275]
[1740243399586,0.02115519,96698.0,96697.0,1.7373275]
[1740243402894,0.05415519,96698.0,96697.0,1.7373275]
[1740243403095,0.05415519,96698.0,96697.0,1.7068275]
[1740243404093,0.02115519,96698.0,96697.0,1.7068275]
[1740243404394,9e-08,96698.0,96697.0,1.8155075]
[1740243405097,0.01000009,96698.0,96697.0,1.8155075]
[1740243407501,0.01000009,96698.0,96697.0,1.7068275]
[1740243410888,0.0200876,96698.0,96697.0,1.7068275]
[1740243415006,0.2269129,96698.0,96697.0,1.7068275]
[1740243415390,0.0200876,96698.0,96697.0,1.7068275]
[1740243415586,0.2269129,96698.0,96697.0,1.7068275]
[1740243422210,0.2269129,96698.0,96697.0,1.5]
[1740243422405,0.2269129,96698.0,96697.0,1.7068275]
[1740243422914,0.2269129,96698.0,96697.0,1.5]
[1740243422915,0.2599129,96698.0,96697.0,1.5]
[1740243423094,0.2599129,96698.0,96697.0,1.7068275]
[1740243425008,0.9815129,96698.0,96697.0,1.7068275]
[1740243425605,0.9815129,96698.0,96697.0,0.2068275]
[1740243426205,0.9815129,96698.0,96697.0,1.7068275]
[1740243430814,1.0767501,96698.0,96697.0,0.2068275]
[1740243434206,0.9815129,96698.0,96697.0,0.2068275]
[1740243439916,0.9815129,96698.0,96687.0,0.0313]
[1740243439917,0.7746876,96698.0,96689.0,0.0517104]
[1740243440121,0.5776467,96690.0,96689.0,0.2068355]
[1740243440523,0.5776467,96690.0,96687.0,0.2381484]
[1740243440524,0.2068467,96688.0,96687.0,0.2381484]
[1740243440724,0.3254067,96688.0,96687.0,0.2381489]
[1740243441821,0.3264067,96688.0,96687.0,0.2381489]
[1740243442929,0.3274067,96688.0,96687.0,0.2381489]
[1740243443123,0.3274067,96688.0,96687.0,0.2704489]
[1740243444124,0.3274067,96688.0,96687.0,0.0636]
[1740243444326,0.3274067,96688.0,96687.0,0.2704489]
[1740243445931,0.3274067,96688.0,96687.0,0.0323]
[1740243446333,0.3576067,96688.0,96687.0,0.0323]
[1740243446638,0.3576067,96688.0,96687.0,0.2391489]
[1740243447133,0.3576067,96688.0,96687.0,0.0323]
[1740243447334,0.3576067,96688.0,96687.0,0.2391489]
[1740243449424,0.15076,96688.0,96682.0,0.00150027]
[1740243449732,0.2586087,96672.0,96671.0,0.2585936]
[1740243449931,0.7379287,96672.0,96671.0,0.2585936]
[1740243450230,0.74841648,96672.0,96671.0,0.2585936]
[1740243450819,0.48980778,96672.0,96671.0,0.2585936]
[1740243451026,0.46932,96672.0,96671.0,0.2585936]
[1740243451232,0.3608,96672.0,96671.0,0.2585936]
[1740243451622,0.3608,96672.0,96671.0,0.2625936]
[1740243452027,0.3608,96672.0,96671.0,0.2108831]
[1740243452028,0.6862009,96672.0,96671.0,0.2108831]
[1740243452334,0.6862009,96672.0,96671.0,0.2138831]
[1740243453232,0.6862009,96672.0,96671.0,0.2446831]
[1740243453233,0.46932,96672.0,96671.0,0.2446831]
[1740243453430,0.6762009,96672.0,96671.0,0.2446831]
[1740243453732,0.3608,96672.0,96671.0,0.2446831]
[1740243453925,0.5776809,96672.0,96671.0,0.2446831]
[1740243454437,0.5776809,96672.0,96662.0,0.25876719]
[1740243454438,0.84012,96672.0,96662.0,0.25876719]
[1740243454626,0.5777002,96663.0,96662.0,0.25878069]
[1740243455825,0.5787002,96663.0,96662.0,0.26278069]
[1740243456221,0.5787002,96663.0,96662.0,0.00415519]
[1740243456428,0.2069109,96658.0,96657.0,0.310362]
[1740243456737,0.2169109,96658.0,96657.0,0.2586341]
[1740243456926,0.3105109,96658.0,96657.0,0.2586341]
[1740243457126,0.1036,96658.0,96649.0,0.05328198]
[1740243457323,0.577728,96650.0,96649.0,0.26021218]
[1740243457526,0.47728,96650.0,96649.0,0.26021218]
[1740243458437,0.684208,96650.0,96649.0,0.20848198]
[1740243459525,0.685208,96650.0,96649.0,0.20848198]
[1740243459923,0.685208,96650.0,96649.0,0.20948198]
[1740243460235,0.685208,96650.0,96649.0,0.00255178]
[1740243460427,0.2586783,96644.0,96643.0,0.0517354]
[1740243460631,0.2686783,96644.0,96643.0,0.0517354]
[1740243460832,0.01,96644.0,96643.0,0.2586784]
[1740243461028,0.01,96644.0,96643.0,0.2896784]
[1740243461337,0.72020001,96650.0,96649.0,0.2069302]
[1740243461534,0.82808,96650.0,96649.0,0.2069302]
[1740243461725,0.7196,96650.0,96649.0,0.2069302]
[1740243461930,0.7196,96650.0,96649.0,0.2378302]
[1740243462232,0.206943,96646.0,96645.0,0.2586685]
[1740243462432,0.0644,96649.0,96648.0,0.2069302]